[Event "BPB Limburg Open 2019 Group A"]
[Site "Maastricht, Netherlands"]
[Date "2019.06.08"]
[Round "2.3"]
[White "Van Foreest, Jorden"]
[Black "Anagnostopoulos, Konstantinos"]
[Result "1-0"]
[TimeControl "2h + 15 sec/move"]
[WhiteFideId "1039784"]
[BlackFideId "4251067"]
[WhiteElo "2610"]
[BlackElo "2325"]

1. Nf3 {[%clk 01:59:55]} {[%emt 00:00:34]} d5 {[%clk 02:00:14]} {[%emt
00:00:16]} 2. d4 {[%clk 01:59:47]} {[%emt 00:00:23]} Nf6 {[%clk 02:00:06]}
{[%emt 00:00:23]} 3. c4 {[%clk 01:59:54]} {[%emt 00:00:08]} e6 {[%clk
02:00:12]} {[%emt 00:00:09]} 4. Nc3 {[%clk 01:59:37]} {[%emt 00:00:32]} Be7
{[%clk 01:59:23]} {[%emt 00:01:04]} 5. h3 {[%clk 01:58:50]} {[%emt 00:01:02]}
O-O {[%clk 01:53:26]} {[%emt 00:06:12]} 6. cxd5 {[%clk 01:57:49]} {[%emt
00:01:16]} exd5 {[%clk 01:52:07]} {[%emt 00:01:34]} 7. Bf4 {[%clk 01:57:52]}
{[%emt 00:00:11]} c6 {[%clk 01:46:59]} {[%emt 00:05:23]} 8. e3 {[%clk
01:56:22]} {[%emt 00:01:44]} Bf5 {[%clk 01:43:00]} {[%emt 00:04:13]} 9. g4
{[%clk 01:55:23]} {[%emt 00:01:15]} Bg6 {[%clk 01:42:33]} {[%emt 00:00:42]} 10.
Ne5 {[%clk 01:54:18]} {[%emt 00:01:20]} Qb6 {[%clk 01:34:42]} {[%emt 00:08:06]}
11. Nxg6 {[%clk 01:52:16]} {[%emt 00:02:16]} fxg6 {[%clk 01:32:27]} {[%emt
00:02:30]} 12. Qb3 {[%clk 01:45:46]} {[%emt 00:06:44]} Nbd7 {[%clk 01:26:00]}
{[%emt 00:06:43]} 13. Bd3 {[%clk 01:33:19]} {[%emt 00:12:42]} Qxb3 {[%clk
01:16:55]} {[%emt 00:09:20]} 14. axb3 {[%clk 01:31:35]} {[%emt 00:01:59]} Ne8
{[%clk 01:17:04]} {[%emt 00:00:06]} 15. O-O {[%clk 01:21:51]} {[%emt 00:09:59]}
Bd6 {[%clk 01:15:49]} {[%emt 00:01:30]} 16. Bxd6 {[%clk 01:21:09]} {[%emt
00:00:57]} Nxd6 {[%clk 01:15:59]} {[%emt 00:00:06]} 17. f3 {[%clk 01:20:11]}
{[%emt 00:01:12]} a6 {[%clk 01:15:48]} {[%emt 00:00:26]} 18. e4 {[%clk
01:19:35]} {[%emt 00:00:51]} dxe4 {[%clk 01:12:13]} {[%emt 00:03:49]} 19. fxe4
{[%clk 01:18:06]} {[%emt 00:01:44]} c5 {[%clk 01:12:12]} {[%emt 00:00:16]} 20.
e5 {[%clk 01:17:14]} {[%emt 00:01:07]} cxd4 {[%clk 01:10:29]} {[%emt 00:01:58]}
21. exd6 {[%clk 01:14:38]} {[%emt 00:02:50]} dxc3 {[%clk 01:09:33]} {[%emt
00:01:11]} 22. bxc3 {[%clk 01:13:55]} {[%emt 00:00:58]} Rf6 {[%clk 01:04:36]}
{[%emt 00:05:11]} 23. Bc4+ {[%clk 01:13:13]} {[%emt 00:00:58]} Kh8 {[%clk
01:04:13]} {[%emt 00:00:38]} 24. Rxf6 {[%clk 01:06:37]} {[%emt 00:06:52]} gxf6
{[%clk 01:04:12]} {[%emt 00:00:15]} 25. Bd5 {[%clk 01:06:18]} {[%emt 00:00:34]}
Rd8 {[%clk 00:59:19]} {[%emt 00:05:08]} 26. c4 {[%clk 01:03:34]} {[%emt
00:02:59]} Kg7 {[%clk 00:55:11]} {[%emt 00:04:23]} 27. Re1 {[%clk 01:00:51]}
{[%emt 00:02:58]} b6 {[%clk 00:49:12]} {[%emt 00:06:14]} 28. b4 {[%clk
00:51:24]} {[%emt 00:09:42]} Kh6 {[%clk 00:43:06]} {[%emt 00:06:21]} 29. Re7
{[%clk 00:48:20]} {[%emt 00:03:19]} Kg5 {[%clk 00:38:11]} {[%emt 00:05:10]} 30.
c5 {[%clk 00:43:52]} {[%emt 00:04:44]} bxc5 {[%clk 00:37:00]} {[%emt 00:01:26]}
31. Be6 {[%clk 00:38:54]} {[%emt 00:05:12]} Ne5 {[%clk 00:21:06]} {[%emt
00:16:10]} 32. bxc5 {[%clk 00:39:00]} {[%emt 00:00:09]} Kf4 {[%clk 00:19:08]}
{[%emt 00:02:13]} 33. Bd5 {[%clk 00:35:45]} {[%emt 00:03:29]} h5 {[%clk
00:17:00]} {[%emt 00:02:23]} 34. Re6 {[%clk 00:31:59]} {[%emt 00:04:01]} Rc8
{[%clk 00:14:29]} {[%emt 00:02:46]} 35. c6 {[%clk 00:31:42]} {[%emt 00:00:32]}
Kg3 {[%clk 00:12:43]} {[%emt 00:02:01]} 36. c7 {[%clk 00:30:44]} {[%emt
00:01:13]} hxg4 {[%clk 00:12:54]} {[%emt 00:00:04]} 37. Rxe5 {[%clk 00:30:00]}
{[%emt 00:00:58]} 1-0

[Event "BPB Limburg Open 2019 Group A"]
[Site "Maastricht, Netherlands"]
[Date "2019.06.08"]
[Round "2.4"]
[White "Van Wely, Loek"]
[Black "Klein, Felix"]
[Result "1-0"]
[TimeControl "2h + 15 sec/move"]
[WhiteFideId "1000268"]
[BlackFideId "24600458"]
[WhiteElo "2604"]
[BlackElo "2328"]

1. d4 {[%clk 01:56:14]} {[%emt 00:04:14]} d5 {[%clk 02:00:26]} {[%emt
00:00:05]} 2. c4 {[%clk 01:56:12]} {[%emt 00:00:17]} e6 {[%clk 02:00:36]}
{[%emt 00:00:05]} 3. Nc3 {[%clk 01:56:06]} {[%emt 00:00:22]} Nf6 {[%clk
02:00:47]} {[%emt 00:00:04]} 4. cxd5 {[%clk 01:52:24]} {[%emt 00:03:56]} exd5
{[%clk 02:00:56]} {[%emt 00:00:06]} 5. Bg5 {[%clk 01:52:33]} {[%emt 00:00:06]}
c6 {[%clk 02:00:25]} {[%emt 00:00:46]} 6. e3 {[%clk 01:52:40]} {[%emt
00:00:07]} Bd6 {[%clk 02:00:26]} {[%emt 00:00:14]} 7. Bd3 {[%clk 01:51:04]}
{[%emt 00:01:52]} O-O {[%clk 02:00:08]} {[%emt 00:00:34]} 8. Qc2 {[%clk
01:45:42]} {[%emt 00:05:37]} h6 {[%clk 01:59:44]} {[%emt 00:00:39]} 9. Bh4
{[%clk 01:45:52]} {[%emt 00:00:05]} Re8 {[%clk 01:58:42]} {[%emt 00:01:17]} 10.
Nge2 {[%clk 01:43:36]} {[%emt 00:02:30]} Be6 {[%clk 01:56:24]} {[%emt
00:02:33]} 11. f3 {[%clk 01:26:57]} {[%emt 00:16:54]} c5 {[%clk 01:47:12]}
{[%emt 00:09:27]} 12. Bxf6 {[%clk 01:24:24]} {[%emt 00:02:47]} Qxf6 {[%clk
01:46:45]} {[%emt 00:00:42]} 13. Nb5 {[%clk 01:23:26]} {[%emt 00:01:13]} Qe7
{[%clk 01:40:24]} {[%emt 00:06:36]} 14. Nxd6 {[%clk 01:22:52]} {[%emt
00:00:48]} Qxd6 {[%clk 01:40:34]} {[%emt 00:00:05]} 15. dxc5 {[%clk 01:19:23]}
{[%emt 00:03:44]} Qe5 {[%clk 01:39:25]} {[%emt 00:01:24]} 16. Qc3 {[%clk
01:19:10]} {[%emt 00:00:28]} Qxc3+ {[%clk 01:32:03]} {[%emt 00:07:38]} 17. Nxc3
{[%clk 01:17:55]} {[%emt 00:01:29]} Rc8 {[%clk 01:32:15]} {[%emt 00:00:03]} 18.
e4 {[%clk 01:01:53]} {[%emt 00:16:17]} Rxc5 {[%clk 01:29:24]} {[%emt 00:03:06]}
19. exd5 {[%clk 00:58:40]} {[%emt 00:03:28]} Bxd5 {[%clk 01:28:27]} {[%emt
00:01:12]} 20. Nxd5 {[%clk 00:57:49]} {[%emt 00:01:06]} Rxd5 {[%clk 01:28:38]}
{[%emt 00:00:05]} 21. O-O-O {[%clk 00:57:36]} {[%emt 00:00:27]} Rc5+ {[%clk
01:24:52]} {[%emt 00:04:02]} 22. Kb1 {[%clk 00:55:11]} {[%emt 00:02:40]} Nc6
{[%clk 01:24:47]} {[%emt 00:00:20]} 23. Be4 {[%clk 00:54:29]} {[%emt 00:00:56]}
f5 {[%clk 01:13:17]} {[%emt 00:11:45]} 24. Rd5 {[%clk 00:47:33]} {[%emt
00:07:11]} Rxd5 {[%clk 01:12:08]} {[%emt 00:01:25]} 25. Bxd5+ {[%clk 00:47:41]}
{[%emt 00:00:06]} Kh7 {[%clk 01:02:15]} {[%emt 00:10:07]} 26. Bxc6 {[%clk
00:42:25]} {[%emt 00:05:31]} bxc6 {[%clk 01:02:26]} {[%emt 00:00:04]} 27. Re1
{[%clk 00:42:23]} {[%emt 00:00:17]} Rd8 {[%clk 00:59:47]} {[%emt 00:02:54]} 28.
Kc2 {[%clk 00:42:32]} {[%emt 00:00:06]} Rd6 {[%clk 00:58:41]} {[%emt 00:01:21]}
29. a4 {[%clk 00:35:38]} {[%emt 00:07:08]} f4 {[%clk 00:51:33]} {[%emt
00:07:23]} 30. Kc3 {[%clk 00:35:01]} {[%emt 00:00:51]} Rg6 {[%clk 00:49:54]}
{[%emt 00:01:55]} 31. Re2 {[%clk 00:34:57]} {[%emt 00:00:19]} Rg5 {[%clk
00:49:38]} {[%emt 00:00:31]} 32. b4 {[%clk 00:34:07]} {[%emt 00:01:06]} Kg8
{[%clk 00:45:19]} {[%emt 00:04:34]} 33. h4 {[%clk 00:29:55]} {[%emt 00:04:26]}
Rg6 {[%clk 00:44:29]} {[%emt 00:01:05]} 34. Kc4 {[%clk 00:29:38]} {[%emt
00:00:32]} Kf7 {[%clk 00:43:31]} {[%emt 00:01:13]} 35. Kc5 {[%clk 00:28:31]}
{[%emt 00:01:21]} h5 {[%clk 00:43:21]} {[%emt 00:00:26]} 36. Re4 {[%clk
00:24:42]} {[%emt 00:04:04]} Rxg2 {[%clk 00:37:11]} {[%emt 00:06:24]} 37. Rxf4+
{[%clk 00:24:27]} {[%emt 00:00:30]} Ke6 {[%clk 00:37:11]} {[%emt 00:00:15]} 38.
Kxc6 {[%clk 00:24:34]} {[%emt 00:00:08]} g5 {[%clk 00:37:02]} {[%emt 00:00:24]}
39. hxg5 {[%clk 00:22:12]} {[%emt 00:02:37]} Rxg5 {[%clk 00:37:11]} {[%emt
00:00:06]} 40. b5 {[%clk 00:21:57]} {[%emt 00:00:30]} Rf5 {[%clk 00:35:43]}
{[%emt 00:01:43]} 41. Re4 {[%clk 00:19:37]} {[%emt 00:02:35]} Kf6 {[%clk
00:35:35]} {[%emt 00:00:24]} 42. Kb7 {[%clk 00:19:22]} {[%emt 00:00:30]} Rxf3
{[%clk 00:34:32]} {[%emt 00:01:17]} 43. Kxa7 {[%clk 00:19:31]} {[%emt
00:00:06]} Kf5 {[%clk 00:33:59]} {[%emt 00:00:49]} 44. Rb4 {[%clk 00:18:47]}
{[%emt 00:00:58]} 1-0

[Event "BPB Limburg Open 2019 Group A"]
[Site "Maastricht, Netherlands"]
[Date "2019.06.08"]
[Round "2.5"]
[White "De Boer, Eelke"]
[Black "Gurevich, Mikhail"]
[Result "0-1"]
[TimeControl "2h + 15 sec/move"]
[WhiteFideId "1048120"]
[BlackFideId "200930"]
[WhiteElo "2316"]
[BlackElo "2579"]

1. e4 {[%clk 01:58:06]} {[%emt 00:02:23]} d6 {[%clk 01:50:30]} {[%emt
00:10:00]} 2. d4 {[%clk 01:57:49]} {[%emt 00:00:33]} g6 {[%clk 01:50:40]}
{[%emt 00:00:05]} 3. Nc3 {[%clk 01:57:54]} {[%emt 00:00:09]} Bg7 {[%clk
01:50:50]} {[%emt 00:00:06]} 4. Be3 {[%clk 01:58:02]} {[%emt 00:00:06]} a6
{[%clk 01:50:54]} {[%emt 00:00:12]} 5. Qd2 {[%clk 01:58:05]} {[%emt 00:00:11]}
b5 {[%clk 01:51:04]} {[%emt 00:00:06]} 6. f3 {[%clk 01:58:05]} {[%emt
00:00:15]} Nd7 {[%clk 01:50:58]} {[%emt 00:00:21]} 7. h4 {[%clk 01:57:52]}
{[%emt 00:00:28]} h5 {[%clk 01:50:52]} {[%emt 00:00:21]} 8. Nh3 {[%clk
01:55:49]} {[%emt 00:02:18]} c5 {[%clk 01:50:41]} {[%emt 00:00:27]} 9. dxc5
{[%clk 01:51:42]} {[%emt 00:04:22]} Nxc5 {[%clk 01:49:07]} {[%emt 00:01:49]} 10.
O-O-O {[%clk 01:48:15]} {[%emt 00:03:42]} Bxh3 {[%clk 01:37:00]} {[%emt
00:12:23]} 11. Rxh3 {[%clk 01:47:13]} {[%emt 00:01:16]} Rc8 {[%clk 01:37:01]}
{[%emt 00:00:14]} 12. Bd4 {[%clk 01:45:39]} {[%emt 00:01:49]} Nf6 {[%clk
01:22:19]} {[%emt 00:14:57]} 13. Nd5 {[%clk 01:39:57]} {[%emt 00:05:57]} Ncd7
{[%clk 01:22:28]} {[%emt 00:00:06]} 14. Kb1 {[%clk 01:33:17]} {[%emt 00:06:54]}
O-O {[%clk 01:21:04]} {[%emt 00:01:39]} 15. Be2 {[%clk 01:31:16]} {[%emt
00:02:17]} Nxd5 {[%clk 01:18:25]} {[%emt 00:02:53]} 16. Bxg7 {[%clk 01:28:33]}
{[%emt 00:02:59]} Kxg7 {[%clk 01:18:31]} {[%emt 00:00:10]} 17. exd5 {[%clk
01:28:39]} {[%emt 00:00:09]} Nf6 {[%clk 01:17:43]} {[%emt 00:01:02]} 18. g4
{[%clk 01:16:38]} {[%emt 00:12:15]} Rc5 {[%clk 01:15:31]} {[%emt 00:02:28]} 19.
Qg5 {[%clk 00:56:21]} {[%emt 00:20:32]} e5 {[%clk 01:02:06]} {[%emt 00:13:40]}
20. f4 {[%clk 00:42:27]} {[%emt 00:14:09]} Nxg4 {[%clk 00:48:50]} {[%emt
00:13:31]} 21. Qxd8 {[%clk 00:26:04]} {[%emt 00:16:38]} Rxd8 {[%clk 00:47:29]}
{[%emt 00:01:36]} 22. Ra3 {[%clk 00:25:04]} {[%emt 00:01:15]} Ra8 {[%clk
00:47:32]} {[%emt 00:00:11]} 23. b4 {[%clk 00:24:55]} {[%emt 00:00:25]} Rcc8
{[%clk 00:47:41]} {[%emt 00:00:06]} 24. Bxg4 {[%clk 00:23:30]} {[%emt
00:01:40]} hxg4 {[%clk 00:47:48]} {[%emt 00:00:08]} 25. fxe5 {[%clk 00:23:39]}
{[%emt 00:00:06]} dxe5 {[%clk 00:47:57]} {[%emt 00:00:06]} 26. d6 {[%clk
00:21:53]} {[%emt 00:02:01]} Rc6 {[%clk 00:45:18]} {[%emt 00:02:53]} 27. d7
{[%clk 00:12:44]} {[%emt 00:09:25]} Rd8 {[%clk 00:44:55]} {[%emt 00:00:38]} 28.
Rad3 {[%clk 00:12:24]} {[%emt 00:00:35]} Kf6 {[%clk 00:41:58]} {[%emt
00:03:10]} 29. Rg1 {[%clk 00:08:31]} {[%emt 00:04:09]} Ke6 {[%clk 00:39:59]}
{[%emt 00:02:14]} 30. Rxg4 {[%clk 00:06:13]} {[%emt 00:02:34]} Rxd7 {[%clk
00:39:55]} {[%emt 00:00:18]} 31. Re3 {[%clk 00:06:09]} {[%emt 00:00:19]} Rd1+
{[%clk 00:38:01]} {[%emt 00:02:10]} 32. Kb2 {[%clk 00:06:20]} {[%emt 00:00:05]}
Rd2 {[%clk 00:38:12]} {[%emt 00:00:03]} 33. Rc3 {[%clk 00:06:18]} {[%emt
00:00:17]} Rxc3 {[%clk 00:38:22]} {[%emt 00:00:06]} 34. Kxc3 {[%clk 00:06:28]}
{[%emt 00:00:04]} Rf2 {[%clk 00:38:33]} {[%emt 00:00:03]} 35. a4 {[%clk
00:04:33]} {[%emt 00:02:11]} Rf3+ {[%clk 00:35:28]} {[%emt 00:03:19]} 36. Kd2
{[%clk 00:03:38]} {[%emt 00:01:10]} Rf4 {[%clk 00:35:29]} {[%emt 00:00:13]} 37.
Rxf4 {[%clk 00:02:23]} {[%emt 00:01:31]} exf4 {[%clk 00:35:30]} {[%emt
00:00:13]} 0-1

[Event "BPB Limburg Open 2019 Group A"]
[Site "Maastricht, Netherlands"]
[Date "2019.06.08"]
[Round "2.6"]
[White "Monroy, Charles"]
[Black "Van Foreest, Lucas"]
[Result "1/2-1/2"]
[TimeControl "2h + 15 sec/move"]
[WhiteFideId "621641"]
[BlackFideId "1039792"]
[WhiteElo "2432"]
[BlackElo "2522"]

1. e4 {[%clk 02:00:28]} c5 {[%clk 01:58:14]} {[%emt 00:02:12]} 2. c3 {[%clk
02:00:18]} {[%emt 00:00:29]} d5 {[%clk 01:57:57]} {[%emt 00:00:32]} 3. exd5
{[%clk 02:00:22]} {[%emt 00:00:11]} Qxd5 {[%clk 01:58:07]} {[%emt 00:00:05]} 4.
d4 {[%clk 02:00:29]} {[%emt 00:00:08]} Nc6 {[%clk 01:58:02]} {[%emt 00:00:20]}
5. Nf3 {[%clk 01:59:58]} {[%emt 00:00:46]} e6 {[%clk 01:57:09]} {[%emt
00:01:08]} 6. Be2 {[%clk 01:57:28]} {[%emt 00:02:45]} Nf6 {[%clk 01:57:13]}
{[%emt 00:00:11]} 7. Na3 {[%clk 01:49:31]} {[%emt 00:08:12]} cxd4 {[%clk
01:50:53]} {[%emt 00:06:34]} 8. Nb5 {[%clk 01:47:57]} {[%emt 00:01:49]} Qd7
{[%clk 01:35:58]} {[%emt 00:15:10]} 9. Nbxd4 {[%clk 01:41:04]} {[%emt
00:07:08]} Nxd4 {[%clk 01:25:22]} {[%emt 00:10:50]} 10. Nxd4 {[%clk 01:40:46]}
{[%emt 00:00:33]} a6 {[%clk 01:25:30]} {[%emt 00:00:07]} 11. Bg5 {[%clk
01:28:02]} {[%emt 00:12:59]} Be7 {[%clk 01:17:59]} {[%emt 00:07:46]} 12. O-O
{[%clk 01:19:54]} {[%emt 00:08:23]} O-O {[%clk 01:17:07]} {[%emt 00:01:07]} 13.
Re1 {[%clk 01:15:03]} {[%emt 00:05:07]} Qc7 {[%clk 01:11:05]} {[%emt 00:06:17]}
14. Bd3 {[%clk 01:09:17]} {[%emt 00:06:01]} b5 {[%clk 01:07:05]} {[%emt
00:04:16]} 15. Re3 {[%clk 00:41:15]} {[%emt 00:28:17]} h6 {[%clk 00:54:13]}
{[%emt 00:13:07]} 16. Bxh6 {[%clk 00:29:03]} {[%emt 00:12:27]} gxh6 {[%clk
00:54:19]} {[%emt 00:00:09]} 17. Rg3+ {[%clk 00:29:01]} {[%emt 00:00:17]} Kh8
{[%clk 00:54:30]} {[%emt 00:00:03]} 18. Qd2 {[%clk 00:29:11]} {[%emt 00:00:05]}
Ng8 {[%clk 00:54:42]} {[%emt 00:00:04]} 19. Rxg8+ {[%clk 00:29:22]} {[%emt
00:00:05]} Kxg8 {[%clk 00:54:54]} {[%emt 00:00:02]} 20. Qxh6 {[%clk 00:29:31]}
{[%emt 00:00:06]} f5 {[%clk 00:55:08]} {[%emt 00:00:02]} 21. Qg6+ {[%emt
00:00:09]} 1/2-1/2

[Event "BPB Limburg Open 2019 Group A"]
[Site "Maastricht, Netherlands"]
[Date "2019.06.08"]
[Round "2.7"]
[White "Nasuta, Grzegorz"]
[Black "Beukema, Stefan"]
[Result "1-0"]
[TimeControl "2h + 15 sec/move"]
[WhiteFideId "1141686"]
[BlackFideId "1024523"]
[WhiteElo "2518"]
[BlackElo "2409"]

1. e4 {[%clk 02:00:27]} {[%emt 00:00:02]} e5 {[%clk 02:00:21]} {[%emt
00:00:09]} 2. Nf3 {[%clk 02:00:38]} {[%emt 00:00:06]} Nc6 {[%clk 02:00:28]}
{[%emt 00:00:07]} 3. Bb5 {[%clk 02:00:48]} {[%emt 00:00:04]} a6 {[%clk
02:00:33]} {[%emt 00:00:10]} 4. Ba4 {[%clk 02:00:59]} {[%emt 00:00:04]} Nf6
{[%clk 02:00:41]} {[%emt 00:00:06]} 5. O-O {[%clk 02:01:10]} {[%emt 00:00:05]}
Be7 {[%clk 02:00:49]} {[%emt 00:00:07]} 6. Re1 {[%clk 02:01:21]} {[%emt
00:00:04]} b5 {[%clk 02:00:51]} {[%emt 00:00:14]} 7. Bb3 {[%clk 02:01:30]}
{[%emt 00:00:06]} d6 {[%clk 02:00:59]} {[%emt 00:00:06]} 8. c3 {[%clk
02:01:39]} {[%emt 00:00:06]} O-O {[%clk 02:01:08]} {[%emt 00:00:06]} 9. h3
{[%clk 02:01:50]} {[%emt 00:00:04]} Na5 {[%clk 02:01:16]} {[%emt 00:00:08]} 10.
Bc2 {[%clk 02:02:01]} {[%emt 00:00:04]} c5 {[%clk 02:01:24]} {[%emt 00:00:07]}
11. d4 {[%clk 02:02:12]} {[%emt 00:00:04]} Qc7 {[%clk 02:01:34]} {[%emt
00:00:05]} 12. Nbd2 {[%clk 02:02:17]} {[%emt 00:00:10]} cxd4 {[%clk 02:01:37]}
{[%emt 00:00:11]} 13. cxd4 {[%clk 02:02:27]} {[%emt 00:00:05]} Nc6 {[%clk
02:01:47]} {[%emt 00:00:06]} 14. Nb3 {[%clk 02:02:38]} {[%emt 00:00:05]} a5
{[%clk 02:01:57]} {[%emt 00:00:05]} 15. Be3 {[%clk 02:02:46]} {[%emt 00:00:06]}
a4 {[%clk 02:02:08]} {[%emt 00:00:04]} 16. Nbd2 {[%clk 02:02:55]} {[%emt
00:00:06]} Bd7 {[%clk 02:02:17]} {[%emt 00:00:06]} 17. Rc1 {[%clk 02:03:05]}
{[%emt 00:00:05]} Qb7 {[%clk 02:01:36]} {[%emt 00:00:55]} 18. Nf1 {[%clk
02:02:54]} {[%emt 00:00:27]} Rfe8 {[%clk 01:56:40]} {[%emt 00:05:11]} 19. Ng3
{[%clk 02:02:54]} {[%emt 00:00:15]} h6 {[%clk 01:53:07]} {[%emt 00:03:48]} 20.
Qd2 {[%clk 02:02:53]} {[%emt 00:00:16]} Bf8 {[%clk 01:51:17]} {[%emt 00:02:05]}
21. d5 {[%clk 02:02:52]} {[%emt 00:00:16]} Na5 {[%clk 01:48:11]} {[%emt
00:03:21]} 22. b3 {[%clk 02:03:01]} {[%emt 00:00:07]} b4 {[%clk 01:47:11]}
{[%emt 00:01:14]} 23. Rb1 {[%clk 01:47:37]} {[%emt 00:15:39]} Rec8 {[%clk
01:45:06]} {[%emt 00:02:20]} 24. Rec1 {[%clk 01:45:14]} {[%emt 00:02:38]} axb3
{[%clk 01:42:50]} {[%emt 00:02:31]} 25. axb3 {[%clk 01:45:18]} {[%emt
00:00:11]} Ne8 {[%clk 01:37:41]} {[%emt 00:05:25]} 26. Ne1 {[%clk 01:18:01]}
{[%emt 00:27:32]} Nc7 {[%clk 01:33:30]} {[%emt 00:04:26]} 27. Ra1 {[%clk
01:08:49]} {[%emt 00:09:28]} Qb5 {[%clk 01:25:27]} {[%emt 00:08:18]} 28. Ra2
{[%clk 00:44:45]} {[%emt 00:24:19]} Nb7 {[%clk 01:03:20]} {[%emt 00:22:22]} 29.
Bd3 {[%clk 00:43:15]} {[%emt 00:01:45]} Rxa2 {[%clk 01:03:24]} {[%emt
00:00:11]} 30. Bxb5 {[%clk 00:32:44]} {[%emt 00:10:45]} Rxd2 {[%clk 01:03:20]}
{[%emt 00:00:19]} 31. Bxd7 {[%clk 00:32:54]} {[%emt 00:00:05]} Rd8 {[%clk
01:02:49]} {[%emt 00:00:46]} 32. Rxc7 {[%clk 00:33:03]} {[%emt 00:00:07]} Rd1
{[%clk 01:02:27]} {[%emt 00:00:37]} 33. Rxb7 {[%clk 00:32:53]} {[%emt
00:00:24]} Rxe1+ {[%clk 01:02:34]} {[%emt 00:00:08]} 34. Kh2 {[%clk 00:33:04]}
{[%emt 00:00:04]} 1-0